[Event "Titled Tuesday Blitz March 22 Early 2022"]
[White "Samunenkov, Ihor"]
[Black "Le Ruyet, Leopold"]
[WhiteFideId "14187086"]
[BlackFideId "645923"]
[WhiteElo "2409"]
[BlackElo "2276"]
[Result "1-0"]
[Round "10"]
[TimeControl "180+1"]
[Date "2022.03.22"]
[WhiteClock "0:00:13"]
[BlackClock "0:00:25"]

1. e4 {[%clk 0:03:00]}  e6 {[%clk 0:02:59]} 2. d4 {[%clk 0:03:00]}  d5 {[%clk 0:02:59]} 3. Nd2 {[%clk 0:03:01]}  c5 {[%clk 0:02:59]} 4. exd5 {[%clk 0:03:01]}  Qxd5 {[%clk 0:03:00]} 5. Ngf3 {[%clk 0:03:00]}  cxd4 {[%clk 0:03:00]} 6. Bc4 {[%clk 0:03:01]}  Qd6 {[%clk 0:03:00]} 7. O-O {[%clk 0:03:01]}  Nf6 {[%clk 0:03:00]} 8. Qe2 {[%clk 0:03:02]}  Nc6 {[%clk 0:02:57]} 9. Ne4 {[%clk 0:02:31]}  Nxe4 {[%clk 0:02:51]} 10. Qxe4 {[%clk 0:02:32]}  Be7 {[%clk 0:02:50]} 11. Bf4 {[%clk 0:02:16]}  Qc5 {[%clk 0:02:49]} 12. Bb3 {[%clk 0:02:17]}  Bd7 {[%clk 0:02:31]} 13. Ne5 {[%clk 0:01:57]}  Nxe5 {[%clk 0:02:18]} 14. Bxe5 {[%clk 0:01:55]}  f6 {[%clk 0:02:14]} 15. Bxd4 {[%clk 0:01:53]}  Qc6 {[%clk 0:02:06]} 16. Qxc6 {[%clk 0:01:48]}  bxc6 {[%clk 0:02:05]} 17. f4 {[%clk 0:01:47]}  g6 {[%clk 0:01:59]} 18. Rfe1 {[%clk 0:01:37]}  Kf7 {[%clk 0:01:58]} 19. Rad1 {[%clk 0:01:37]}  Rhd8 {[%clk 0:01:35]} 20. Bc4 {[%clk 0:01:24]}  a5 {[%clk 0:01:27]} 21. a4 {[%clk 0:01:09]}  c5 {[%clk 0:01:22]} 22. Bc3 {[%clk 0:01:08]}  Bxa4 {[%clk 0:01:14]} 23. Rxd8 {[%clk 0:01:07]}  Rxd8 {[%clk 0:01:12]} 24. Rxe6 {[%clk 0:00:50]}  Kf8 {[%clk 0:01:06]} 25. Bxf6 {[%clk 0:00:42]}  Bxf6 {[%clk 0:01:01]} 26. Rxf6+ {[%clk 0:00:43]}  Kg7 {[%clk 0:01:01]} 27. Rf7+ {[%clk 0:00:40]}  Kh8 {[%clk 0:00:51]} 28. b3 {[%clk 0:00:30]}  Bc6 {[%clk 0:00:48]} 29. Rc7 {[%clk 0:00:25]}  Be4 {[%clk 0:00:45]} 30. Rxc5 {[%clk 0:00:23]}  Bxc2 {[%clk 0:00:44]} 31. Bd5 {[%clk 0:00:15]}  Bd1 {[%clk 0:00:30]} 32. Rxa5 {[%clk 0:00:14]}  Rb8 {[%clk 0:00:30]} 33. Ra1 {[%clk 0:00:11]}  Bc2 {[%clk 0:00:25]} 34. Ra2 {[%clk 0:00:11]}  Bf5 {[%clk 0:00:20]} 35. Ra8 {[%clk 0:00:11]}  Rxa8 {[%clk 0:00:19]} 36. Bxa8 {[%clk 0:00:12]}  Kg7 {[%clk 0:00:19]} 37. Kf2 {[%clk 0:00:12]}  Kf6 {[%clk 0:00:20]} 38. Ke3 {[%clk 0:00:12]}  Ke6 {[%clk 0:00:21]} 39. Kd4 {[%clk 0:00:13]}  Kd6 {[%clk 0:00:22]} 40. b4 {[%clk 0:00:12]}  Bd7 {[%clk 0:00:22]} 41. Bd5 {[%clk 0:00:10]}  Bb5 {[%clk 0:00:22]} 42. Bc4 {[%clk 0:00:10]}  Bc6 {[%clk 0:00:22]} 43. g3 {[%clk 0:00:11]}  Bb7 {[%clk 0:00:22]} 44. h4 {[%clk 0:00:10]}  Bf3 {[%clk 0:00:21]} 45. b5 {[%clk 0:00:07]}  Bb7 {[%clk 0:00:12]} 46. b6 {[%clk 0:00:07]}  Bf3 {[%clk 0:00:10]} 47. Bd3 {[%clk 0:00:04]}  Kc6 {[%clk 0:00:10]} 48. Be4+ {[%clk 0:00:04]}  Bxe4 {[%clk 0:00:09]} 49. Kxe4 {[%clk 0:00:05]}  Kxb6 {[%clk 0:00:10]} 50. Ke5 {[%clk 0:00:04]}  Kc6 {[%clk 0:00:10]} 51. Kf6 {[%clk 0:00:04]}  Kd5 {[%clk 0:00:11]} 52. Kg7 {[%clk 0:00:05]}  Ke4 {[%clk 0:00:12]} 53. Kxh7 {[%clk 0:00:05]}  Kf3 {[%clk 0:00:13]} 54. Kxg6 {[%clk 0:00:06]}  Kxg3 {[%clk 0:00:14]} 55. f5 {[%clk 0:00:06]}  Kxh4 {[%clk 0:00:14]} 56. f6 {[%clk 0:00:07]}  Kg4 {[%clk 0:00:15]} 57. f7 {[%clk 0:00:08]}  Kh4 {[%clk 0:00:16]} 58. f8=Q {[%clk 0:00:09]}  Kg4 {[%clk 0:00:17]} 59. Qf5+ {[%clk 0:00:09]}  Kh4 {[%clk 0:00:18]} 60. Qg5+ {[%clk 0:00:09]}  Kh3 {[%clk 0:00:18]} 61. Kf5 {[%clk 0:00:10]}  Kh2 {[%clk 0:00:19]} 62. Kf4 {[%clk 0:00:11]}  Kh1 {[%clk 0:00:19]} 63. Kf3 {[%clk 0:00:11]}  Kh2 {[%clk 0:00:20]} 64. Qg4 {[%clk 0:00:11]}  Kh1 {[%clk 0:00:21]} 65. Qg6 {[%clk 0:00:11]}  Kh2 {[%clk 0:00:21]} 66. Qg7 {[%clk 0:00:12]}  Kh1 {[%clk 0:00:22]} 67. Qg8 {[%clk 0:00:13]}  Kh2 {[%clk 0:00:23]} 68. Qc4 {[%clk 0:00:12]}  Kh1 {[%clk 0:00:24]} 69. Qh4+ {[%clk 0:00:11]}  Kg1 {[%clk 0:00:24]} 70. Qf2+ {[%clk 0:00:12]}  Kh1 {[%clk 0:00:25]} 71. Qg2# {[%clk 0:00:13]} 1-0


[Site "https://www.chess.com"]

[Event "Titled Tuesday Blitz March 22 Early 2022"]
[White "Sanchez Alvares, Kelvin Antonio"]
[Black "Pranav, V"]
[WhiteFideId "3906680"]
[BlackFideId "25060783"]
[WhiteElo "2193"]
[BlackElo "2349"]
[Result "0-1"]
[Round "10"]
[TimeControl "180+1"]
[Date "2022.03.22"]
[WhiteClock "0:02:08"]
[BlackClock "0:02:40"]

1. e4 {[%clk 0:03:00]}  e5 {[%clk 0:02:59]} 2. Nf3 {[%clk 0:03:00]}  Nf6 {[%clk 0:02:59]} 3. Nxe5 {[%clk 0:03:00]}  Nc6 {[%clk 0:03:00]} 4. Nxc6 {[%clk 0:03:00]}  dxc6 {[%clk 0:03:01]} 5. d3 {[%clk 0:02:59]}  Bc5 {[%clk 0:03:01]} 6. Be2 {[%clk 0:02:46]}  h5 {[%clk 0:03:01]} 7. c3 {[%clk 0:02:43]}  Bb6 {[%clk 0:03:00]} 8. h3 {[%clk 0:02:38]}  Qe7 {[%clk 0:02:57]} 9. Nd2 {[%clk 0:02:37]}  Be6 {[%clk 0:02:57]} 10. a4 {[%clk 0:02:36]}  a6 {[%clk 0:02:55]} 11. a5 {[%clk 0:02:35]}  Ba7 {[%clk 0:02:55]} 12. b3 {[%clk 0:02:34]}  Qc5 {[%clk 0:02:54]} 13. O-O {[%clk 0:02:25]}  Qxc3 {[%clk 0:02:53]} 14. Nc4 {[%clk 0:02:23]}  Qxa1 {[%clk 0:02:50]} 15. Qc2 {[%clk 0:02:17]}  Bxc4 {[%clk 0:02:49]} 16. Bb2 {[%clk 0:02:12]}  Qxa5 {[%clk 0:02:47]} 17. dxc4 {[%clk 0:02:13]}  O-O-O {[%clk 0:02:40]} 18. e5 {[%clk 0:02:12]}  Qd2 {[%clk 0:02:40]} 19. Qf5+ {[%clk 0:02:08]}  Nd7 {[%clk 0:02:40]} 0-1


[Site "https://www.chess.com"]

[Event "Titled Tuesday Blitz March 22 Early 2022"]
[White "Shuvalova, Polina"]
[Black "Shuvalov, Evgenij"]
[WhiteFideId "24171760"]
[BlackFideId "4187237"]
[WhiteElo "2355"]
[BlackElo "2151"]
[Result "1-0"]
[Round "10"]
[TimeControl "180+1"]
[Date "2022.03.22"]
[WhiteClock "0:00:09"]
[BlackClock "0:00:21"]

1. d4 {[%clk 0:03:00]}  Nf6 {[%clk 0:02:56]} 2. Nf3 {[%clk 0:03:01]}  g6 {[%clk 0:02:53]} 3. c4 {[%clk 0:03:00]}  Bg7 {[%clk 0:02:52]} 4. Nc3 {[%clk 0:03:00]}  d5 {[%clk 0:02:52]} 5. cxd5 {[%clk 0:03:00]}  Nxd5 {[%clk 0:02:53]} 6. e4 {[%clk 0:03:00]}  Nxc3 {[%clk 0:02:53]} 7. bxc3 {[%clk 0:03:01]}  c5 {[%clk 0:02:54]} 8. Bb5+ {[%clk 0:03:02]}  Nc6 {[%clk 0:02:53]} 9. O-O {[%clk 0:03:01]}  O-O {[%clk 0:02:53]} 10. Bxc6 {[%clk 0:02:59]}  bxc6 {[%clk 0:02:53]} 11. Qc2 {[%clk 0:02:58]}  Bg4 {[%clk 0:02:40]} 12. Ne5 {[%clk 0:02:54]}  cxd4 {[%clk 0:02:27]} 13. Nxg4 {[%clk 0:02:40]}  h5 {[%clk 0:02:26]} 14. Nh6+ {[%clk 0:01:44]}  Kh7 {[%clk 0:02:26]} 15. Nf5 {[%clk 0:01:44]}  gxf5 {[%clk 0:02:22]} 16. exf5 {[%clk 0:01:44]}  d3 {[%clk 0:01:58]} 17. Qd1 {[%clk 0:01:44]}  Rh8 {[%clk 0:01:58]} 18. Bg5 {[%clk 0:01:33]}  Bxc3 {[%clk 0:01:48]} 19. Rc1 {[%clk 0:01:31]}  Bf6 {[%clk 0:01:42]} 20. Bxf6 {[%clk 0:01:25]}  exf6 {[%clk 0:01:43]} 21. Qxh5+ {[%clk 0:01:23]}  Kg7 {[%clk 0:01:43]} 22. Qg4+ {[%clk 0:01:23]}  Kf8 {[%clk 0:01:42]} 23. Rxc6 {[%clk 0:01:18]}  Rc8 {[%clk 0:01:29]} 24. Rxc8 {[%clk 0:01:08]}  Qxc8 {[%clk 0:01:29]} 25. Rd1 {[%clk 0:01:05]}  Qc2 {[%clk 0:01:22]} 26. h3 {[%clk 0:00:54]}  Rg8 {[%clk 0:01:17]} 27. Qf3 {[%clk 0:00:37]}  Qxa2 {[%clk 0:01:05]} 28. Rxd3 {[%clk 0:00:34]}  Rg5 {[%clk 0:01:04]} 29. g4 {[%clk 0:00:31]}  Qc4 {[%clk 0:00:58]} 30. Rd8+ {[%clk 0:00:29]}  Kg7 {[%clk 0:00:58]} 31. Qa8 {[%clk 0:00:29]}  Rg6 {[%clk 0:00:29]} 32. fxg6 {[%clk 0:00:22]}  fxg6 {[%clk 0:00:30]} 33. Rd7+ {[%clk 0:00:19]}  Kh6 {[%clk 0:00:30]} 34. Qb7 {[%clk 0:00:13]}  a5 {[%clk 0:00:27]} 35. Rh7+ {[%clk 0:00:09]}  Kg5 {[%clk 0:00:27]} 36. Qf3 {[%clk 0:00:09]}  Qc1+ {[%clk 0:00:21]} 37. Kg2 {[%clk 0:00:09]}  a4 {[%clk 0:00:21]} 38. h4# {[%clk 0:00:09]} 1-0


[Site "https://www.chess.com"]

[Event "Titled Tuesday Blitz March 22 Early 2022"]
[White "Tasev, Dejan"]
[Black "Guseva, Marina"]
[WhiteFideId "936618"]
[BlackFideId "4149351"]
[WhiteElo "2253"]
[BlackElo "2160"]
[Result "1-0"]
[Round "10"]
[TimeControl "180+1"]
[Date "2022.03.22"]
[WhiteClock "0:01:07"]
[BlackClock "0:00:08"]

1. e4 {[%clk 0:03:00]}  c5 {[%clk 0:02:59]} 2. Nf3 {[%clk 0:03:00]}  Nc6 {[%clk 0:02:58]} 3. Nc3 {[%clk 0:03:00]}  e5 {[%clk 0:02:55]} 4. Bc4 {[%clk 0:03:00]}  Be7 {[%clk 0:02:51]} 5. d3 {[%clk 0:03:00]}  d6 {[%clk 0:02:50]} 6. Nd2 {[%clk 0:03:00]}  Bg5 {[%clk 0:02:46]} 7. Nf1 {[%clk 0:03:00]}  Bxc1 {[%clk 0:02:45]} 8. Rxc1 {[%clk 0:03:00]}  Nge7 {[%clk 0:02:43]} 9. Ne3 {[%clk 0:03:00]}  O-O {[%clk 0:02:41]} 10. O-O {[%clk 0:03:00]}  a6 {[%clk 0:02:41]} 11. f4 {[%clk 0:02:58]}  b5 {[%clk 0:02:29]} 12. Bb3 {[%clk 0:02:56]}  exf4 {[%clk 0:02:28]} 13. Rxf4 {[%clk 0:02:56]}  Nd4 {[%clk 0:02:27]} 14. Qd2 {[%clk 0:02:51]}  Nxb3 {[%clk 0:02:25]} 15. axb3 {[%clk 0:02:51]}  Be6 {[%clk 0:02:23]} 16. Rcf1 {[%clk 0:02:50]}  b4 {[%clk 0:02:19]} 17. Ne2 {[%clk 0:02:47]}  d5 {[%clk 0:02:10]} 18. exd5 {[%clk 0:02:46]}  Nxd5 {[%clk 0:02:09]} 19. Nxd5 {[%clk 0:02:43]}  Bxd5 {[%clk 0:02:06]} 20. Ng3 {[%clk 0:02:43]}  g6 {[%clk 0:02:03]} 21. Qf2 {[%clk 0:02:41]}  Qe7 {[%clk 0:01:45]} 22. Re1 {[%clk 0:02:29]}  Qc7 {[%clk 0:01:40]} 23. Ne4 {[%clk 0:02:22]}  f5 {[%clk 0:00:55]} 24. Nxc5 {[%clk 0:02:04]}  Rac8 {[%clk 0:00:36]} 25. d4 {[%clk 0:01:58]}  a5 {[%clk 0:00:36]} 26. Re5 {[%clk 0:01:52]}  Qc6 {[%clk 0:00:34]} 27. Qg3 {[%clk 0:01:41]}  Rce8 {[%clk 0:00:30]} 28. Rxe8 {[%clk 0:01:38]}  Qxe8 {[%clk 0:00:28]} 29. Rf1 {[%clk 0:01:30]}  Qe2 {[%clk 0:00:21]} 30. Qf2 {[%clk 0:01:26]}  Re8 {[%clk 0:00:20]} 31. h3 {[%clk 0:01:14]}  Qxf2+ {[%clk 0:00:18]} 32. Rxf2 {[%clk 0:01:14]}  Re1+ {[%clk 0:00:18]} 33. Kh2 {[%clk 0:01:15]}  Rd1 {[%clk 0:00:18]} 34. c3 {[%clk 0:01:10]}  Kg7 {[%clk 0:00:15]} 35. c4 {[%clk 0:01:08]}  Be4 {[%clk 0:00:10]} 36. d5 {[%clk 0:01:08]}  Rd4 {[%clk 0:00:08]} 37. Ne6+ {[%clk 0:01:07]} 1-0


[Site "https://www.chess.com"]

[Event "Titled Tuesday Blitz March 22 Early 2022"]
[White "Vakhlamov, Igor L."]
[Black "Ljukin, Sergei"]
[WhiteFideId "24126748"]
[BlackFideId "14102200"]
[WhiteElo "2401"]
[BlackElo "2312"]
[Result "1-0"]
[Round "10"]
[TimeControl "180+1"]
[Date "2022.03.22"]
[WhiteClock "0:00:23"]
[BlackClock "0:00:07"]

1. e4 {[%clk 0:03:00]}  e6 {[%clk 0:00:51]} 2. d4 {[%clk 0:02:53]}  d5 {[%clk 0:00:50]} 3. Nc3 {[%clk 0:02:53]}  Bb4 {[%clk 0:00:50]} 4. exd5 {[%clk 0:02:52]}  exd5 {[%clk 0:00:47]} 5. Bd3 {[%clk 0:02:53]}  Nf6 {[%clk 0:00:33]} 6. Nf3 {[%clk 0:02:51]}  O-O {[%clk 0:00:32]} 7. O-O {[%clk 0:02:51]}  c6 {[%clk 0:00:32]} 8. Ne2 {[%clk 0:02:50]}  Bg4 {[%clk 0:00:31]} 9. Ng3 {[%clk 0:02:48]}  Nbd7 {[%clk 0:00:32]} 10. h3 {[%clk 0:02:46]}  Be6 {[%clk 0:00:32]} 11. Bf4 {[%clk 0:02:40]}  Qb6 {[%clk 0:00:31]} 12. c3 {[%clk 0:02:36]}  Be7 {[%clk 0:00:30]} 13. Qc2 {[%clk 0:02:37]}  Rfe8 {[%clk 0:00:30]} 14. Rfe1 {[%clk 0:02:32]}  Nf8 {[%clk 0:00:30]} 15. Ng5 {[%clk 0:02:23]}  h6 {[%clk 0:00:27]} 16. Nxe6 {[%clk 0:02:22]}  Nxe6 {[%clk 0:00:27]} 17. Be5 {[%clk 0:02:20]}  Nd7 {[%clk 0:00:24]} 18. Nh5 {[%clk 0:01:43]}  Nxe5 {[%clk 0:00:23]} 19. Rxe5 {[%clk 0:01:44]}  Bd6 {[%clk 0:00:21]} 20. Rf5 {[%clk 0:01:30]}  Rf8 {[%clk 0:00:17]} 21. h4 {[%clk 0:01:16]}  Kh8 {[%clk 0:00:17]} 22. Rf3 {[%clk 0:01:16]}  Rae8 {[%clk 0:00:16]} 23. g3 {[%clk 0:01:06]}  Qc7 {[%clk 0:00:16]} 24. b4 {[%clk 0:01:00]}  b6 {[%clk 0:00:15]} 25. Qd2 {[%clk 0:00:54]}  c5 {[%clk 0:00:14]} 26. bxc5 {[%clk 0:00:55]}  bxc5 {[%clk 0:00:14]} 27. Rf6 {[%clk 0:00:43]}  Nf4 {[%clk 0:00:09]} 28. Nxf4 {[%clk 0:00:24]}  gxf6 {[%clk 0:00:07]} 29. Nh5 {[%clk 0:00:23]} 1-0


[Site "https://www.chess.com"]

[Event "Titled Tuesday Blitz March 22 Early 2022"]
[White "Vlassov, Nikolai"]
[Black "Golubka, Petro"]
[WhiteFideId "4103360"]
[BlackFideId "14114224"]
[WhiteElo "2407"]
[BlackElo "2346"]
[Result "1-0"]
[Round "10"]
[TimeControl "180+1"]
[Date "2022.03.22"]
[WhiteClock "0:00:19"]
[BlackClock "0:00:50"]

1. e4 {[%clk 0:03:00]}  g6 {[%clk 0:02:53]} 2. h4 {[%clk 0:03:00]}  h5 {[%clk 0:02:53]} 3. Nf3 {[%clk 0:03:00]}  Bg7 {[%clk 0:02:53]} 4. Ng5 {[%clk 0:03:00]}  Nh6 {[%clk 0:02:53]} 5. d4 {[%clk 0:03:00]}  f6 {[%clk 0:02:47]} 6. Nh3 {[%clk 0:02:51]}  d6 {[%clk 0:02:45]} 7. Nf4 {[%clk 0:02:50]}  Kf7 {[%clk 0:02:44]} 8. Bc4+ {[%clk 0:02:49]}  e6 {[%clk 0:02:44]} 9. Nc3 {[%clk 0:02:46]}  c6 {[%clk 0:02:43]} 10. d5 {[%clk 0:02:44]}  cxd5 {[%clk 0:02:41]} 11. exd5 {[%clk 0:02:44]}  e5 {[%clk 0:02:41]} 12. Ne6 {[%clk 0:02:45]}  Qe7 {[%clk 0:02:41]} 13. f4 {[%clk 0:02:34]}  Ng4 {[%clk 0:02:40]} 14. Qe2 {[%clk 0:02:22]}  Nd7 {[%clk 0:02:37]} 15. O-O {[%clk 0:02:11]}  Nb6 {[%clk 0:02:34]} 16. Bb3 {[%clk 0:02:06]}  Bxe6 {[%clk 0:02:28]} 17. dxe6+ {[%clk 0:02:06]}  Kg8 {[%clk 0:02:29]} 18. f5 {[%clk 0:01:58]}  gxf5 {[%clk 0:02:25]} 19. Rxf5 {[%clk 0:01:58]}  d5 {[%clk 0:02:17]} 20. Qb5 {[%clk 0:01:36]}  Bh6 {[%clk 0:01:29]} 21. Rxh5 {[%clk 0:01:09]}  Bxc1 {[%clk 0:01:22]} 22. Rxh8+ {[%clk 0:01:05]}  Kxh8 {[%clk 0:01:23]} 23. Rxc1 {[%clk 0:01:05]}  Qxe6 {[%clk 0:01:23]} 24. Nxd5 {[%clk 0:01:04]}  Qd6 {[%clk 0:01:20]} 25. Qe2 {[%clk 0:00:34]}  Qc5+ {[%clk 0:01:15]} 26. Kh1 {[%clk 0:00:34]}  Nf2+ {[%clk 0:01:14]} 27. Kh2 {[%clk 0:00:34]}  Nxd5 {[%clk 0:01:13]} 28. Bxd5 {[%clk 0:00:33]}  Qxd5 {[%clk 0:01:06]} 29. Qxf2 {[%clk 0:00:33]}  Kg7 {[%clk 0:01:06]} 30. Rf1 {[%clk 0:00:31]}  Rf8 {[%clk 0:01:04]} 31. Qxa7 {[%clk 0:00:29]}  Qe4 {[%clk 0:01:00]} 32. Qf2 {[%clk 0:00:28]}  f5 {[%clk 0:00:57]} 33. Re1 {[%clk 0:00:26]}  Qd5 {[%clk 0:00:55]} 34. Qg3+ {[%clk 0:00:26]}  Kf6 {[%clk 0:00:55]} 35. Qg5+ {[%clk 0:00:26]}  Ke6 {[%clk 0:00:55]} 36. Qg6+ {[%clk 0:00:25]}  Rf6 {[%clk 0:00:51]} 37. Qe8+ {[%clk 0:00:23]}  Kd6 {[%clk 0:00:50]} 38. Rd1 {[%clk 0:00:19]} 1-0


[Site "https://www.chess.com"]

[Event "Titled Tuesday Blitz March 22 Early 2022"]
[White "Vokhidov, Shamsiddin"]
[Black "Kollars, Dmitrij"]
[WhiteFideId "14204223"]
[BlackFideId "12909572"]
[WhiteElo "2611"]
[BlackElo "2584"]
[Result "0-1"]
[Round "10"]
[TimeControl "180+1"]
[Date "2022.03.22"]
[WhiteClock "0:00:24"]
[BlackClock "0:00:37"]

1. e4 {[%clk 0:03:00]}  c6 {[%clk 0:02:59]} 2. d4 {[%clk 0:03:00]}  d5 {[%clk 0:03:00]} 3. e5 {[%clk 0:03:01]}  Bf5 {[%clk 0:03:00]} 4. h4 {[%clk 0:03:01]}  h5 {[%clk 0:03:00]} 5. Bd3 {[%clk 0:03:02]}  Bxd3 {[%clk 0:03:00]} 6. Qxd3 {[%clk 0:03:03]}  Qa5+ {[%clk 0:03:00]} 7. Nd2 {[%clk 0:03:03]}  e6 {[%clk 0:02:58]} 8. Nf3 {[%clk 0:03:03]}  Nh6 {[%clk 0:02:53]} 9. O-O {[%clk 0:03:02]}  Nf5 {[%clk 0:02:52]} 10. Nb3 {[%clk 0:03:03]}  Qa6 {[%clk 0:02:46]} 11. Qd1 {[%clk 0:03:03]}  Nd7 {[%clk 0:02:42]} 12. Re1 {[%clk 0:02:50]}  b6 {[%clk 0:02:40]} 13. Bg5 {[%clk 0:02:47]}  c5 {[%clk 0:02:39]} 14. dxc5 {[%clk 0:02:41]}  Bxc5 {[%clk 0:02:40]} 15. c3 {[%clk 0:02:31]}  Rc8 {[%clk 0:02:38]} 16. a4 {[%clk 0:02:24]}  Qc4 {[%clk 0:02:20]} 17. Nfd4 {[%clk 0:02:23]}  Bxd4 {[%clk 0:02:07]} 18. cxd4 {[%clk 0:02:20]}  Qb4 {[%clk 0:01:56]} 19. a5 {[%clk 0:01:57]}  O-O {[%clk 0:01:35]} 20. axb6 {[%clk 0:01:57]}  axb6 {[%clk 0:01:36]} 21. Ra7 {[%clk 0:01:56]}  Nb8 {[%clk 0:01:36]} 22. Rb7 {[%clk 0:01:31]}  Nc6 {[%clk 0:01:29]} 23. Nc5 {[%clk 0:01:26]}  Na5 {[%clk 0:01:14]} 24. Bd2 {[%clk 0:01:11]}  Qxd4 {[%clk 0:01:11]} 25. Bxa5 {[%clk 0:01:10]}  Qxd1 {[%clk 0:01:10]} 26. Rxd1 {[%clk 0:01:11]}  bxc5 {[%clk 0:01:11]} 27. g3 {[%clk 0:01:01]}  Rb8 {[%clk 0:01:11]} 28. Rc7 {[%clk 0:00:50]}  c4 {[%clk 0:01:09]} 29. Bc3 {[%clk 0:00:45]}  Rfc8 {[%clk 0:01:08]} 30. Rd7 {[%clk 0:00:45]}  Rd8 {[%clk 0:01:05]} 31. Rc7 {[%clk 0:00:45]}  d4 {[%clk 0:00:54]} 32. Ba5 {[%clk 0:00:45]}  Rd5 {[%clk 0:00:51]} 33. Bd2 {[%clk 0:00:45]}  c3 {[%clk 0:00:43]} 34. Bf4 {[%clk 0:00:30]}  cxb2 {[%clk 0:00:41]} 35. Rb1 {[%clk 0:00:30]}  Ra5 {[%clk 0:00:37]} 36. Rc2 {[%clk 0:00:23]}  Ra1 {[%clk 0:00:37]} 37. Rxb2 {[%clk 0:00:24]}  Rxb1+ {[%clk 0:00:37]} 0-1


[Site "https://www.chess.com"]

[Event "Titled Tuesday Blitz March 22 Early 2022"]
[White "Vusatiuk, Vladimir"]
[Black "Tsyhanchuk, Stanislav"]
[WhiteFideId "14118610"]
[BlackFideId "13505130"]
[WhiteElo "2157"]
[BlackElo "2078"]
[Result "1-0"]
[Round "10"]
[TimeControl "180+1"]
[Date "2022.03.22"]
[WhiteClock "0:00:35"]
[BlackClock "0:01:05"]

1. d4 {[%clk 0:03:00]}  d5 {[%clk 0:02:58]} 2. c4 {[%clk 0:03:00]}  c6 {[%clk 0:02:58]} 3. Nc3 {[%clk 0:02:59]}  Nf6 {[%clk 0:02:57]} 4. Nf3 {[%clk 0:02:59]}  dxc4 {[%clk 0:02:56]} 5. a4 {[%clk 0:03:00]}  Bf5 {[%clk 0:02:49]} 6. Ne5 {[%clk 0:03:00]}  Nbd7 {[%clk 0:02:48]} 7. Nxc4 {[%clk 0:03:00]}  Qc7 {[%clk 0:02:48]} 8. g3 {[%clk 0:02:49]}  e5 {[%clk 0:02:46]} 9. dxe5 {[%clk 0:02:47]}  Nxe5 {[%clk 0:02:47]} 10. Bf4 {[%clk 0:02:47]}  Nfd7 {[%clk 0:02:45]} 11. Bg2 {[%clk 0:02:42]}  g5 {[%clk 0:02:42]} 12. Nxe5 {[%clk 0:02:25]}  gxf4 {[%clk 0:02:39]} 13. Nxd7 {[%clk 0:02:25]}  Bxd7 {[%clk 0:02:38]} 14. Qd4 {[%clk 0:02:21]}  fxg3 {[%clk 0:02:36]} 15. Qxh8 {[%clk 0:02:18]}  O-O-O {[%clk 0:02:31]} 16. hxg3 {[%clk 0:01:59]}  Qb6 {[%clk 0:02:08]} 17. O-O {[%clk 0:01:34]}  Bc5 {[%clk 0:02:01]} 18. Qf6 {[%clk 0:01:12]}  Bd4 {[%clk 0:01:56]} 19. Qf4 {[%clk 0:01:02]}  Be6 {[%clk 0:01:52]} 20. Rfd1 {[%clk 0:00:57]}  c5 {[%clk 0:01:44]} 21. e3 {[%clk 0:00:56]}  Qxb2 {[%clk 0:01:41]} 22. exd4 {[%clk 0:00:53]}  cxd4 {[%clk 0:01:27]} 23. Ne4 {[%clk 0:00:49]}  Rd5 {[%clk 0:01:22]} 24. Rac1+ {[%clk 0:00:48]}  Kd8 {[%clk 0:01:18]} 25. Qb8+ {[%clk 0:00:47]}  Ke7 {[%clk 0:01:17]} 26. Rc7+ {[%clk 0:00:46]}  Bd7 {[%clk 0:01:16]} 27. Bh3 {[%clk 0:00:42]}  d3 {[%clk 0:01:11]} 28. Qxb7 {[%clk 0:00:38]}  Qe2 {[%clk 0:01:06]} 29. Rxd7+ {[%clk 0:00:38]}  Rxd7 {[%clk 0:01:01]} 30. Qxd7+ {[%clk 0:00:38]}  Kf8 {[%clk 0:01:00]} 31. Qg4 {[%clk 0:00:34]}  f5 {[%clk 0:00:58]} 32. Qxe2 {[%clk 0:00:33]}  dxe2 {[%clk 0:00:58]} 33. Re1 {[%clk 0:00:33]}  fxe4 {[%clk 0:00:59]} 34. Rxe2 {[%clk 0:00:33]}  e3 {[%clk 0:01:00]} 35. Rxe3 {[%clk 0:00:33]}  h5 {[%clk 0:01:01]} 36. Rb3 {[%clk 0:00:33]}  h4 {[%clk 0:01:02]} 37. gxh4 {[%clk 0:00:34]}  a5 {[%clk 0:01:03]} 38. Rb5 {[%clk 0:00:33]}  Kg8 {[%clk 0:01:02]} 39. Rxa5 {[%clk 0:00:34]}  Kh8 {[%clk 0:01:03]} 40. Rb5 {[%clk 0:00:34]}  Kg8 {[%clk 0:01:04]} 41. a5 {[%clk 0:00:35]}  Kh8 {[%clk 0:01:05]} 42. a6 {[%clk 0:00:36]}  Kg8 {[%clk 0:01:06]} 43. a7 {[%clk 0:00:37]}  Kh8 {[%clk 0:01:06]} 44. a8=Q+ {[%clk 0:00:37]}  Kg7 {[%clk 0:01:06]} 45. Qa6 {[%clk 0:00:36]}  Kf8 {[%clk 0:01:05]} 46. Rb8+ {[%clk 0:00:36]}  Ke7 {[%clk 0:01:05]} 47. Qe6# {[%clk 0:00:35]} 1-0


[Site "https://www.chess.com"]

[Event "Titled Tuesday Blitz March 22 Early 2022"]
[White "Winkels, Marcel"]
[Black "Lakshmi C"]
[WhiteFideId "1003887"]
[BlackFideId "25035347"]
[WhiteElo "1900"]
[BlackElo "1775"]
[Result "0-1"]
[Round "10"]
[TimeControl "180+1"]
[Date "2022.03.22"]
[WhiteClock "0:01:24"]
[BlackClock "0:00:23"]

1. e4 {[%clk 0:03:00]}  c5 {[%clk 0:02:55]} 2. Nf3 {[%clk 0:03:00]}  Nc6 {[%clk 0:02:55]} 3. Bb5 {[%clk 0:02:58]}  g6 {[%clk 0:02:54]} 4. O-O {[%clk 0:02:55]}  Bg7 {[%clk 0:02:53]} 5. Re1 {[%clk 0:02:55]}  a6 {[%clk 0:02:53]} 6. Bxc6 {[%clk 0:02:53]}  bxc6 {[%clk 0:02:52]} 7. c3 {[%clk 0:02:54]}  d6 {[%clk 0:02:35]} 8. d4 {[%clk 0:02:53]}  cxd4 {[%clk 0:02:35]} 9. cxd4 {[%clk 0:02:53]}  Qc7 {[%clk 0:02:33]} 10. h3 {[%clk 0:02:53]}  Nf6 {[%clk 0:02:24]} 11. Nc3 {[%clk 0:02:50]}  O-O {[%clk 0:02:24]} 12. Bf4 {[%clk 0:02:46]}  Nh5 {[%clk 0:02:05]} 13. Bh2 {[%clk 0:02:44]}  Qb7 {[%clk 0:02:05]} 14. b3 {[%clk 0:02:38]}  c5 {[%clk 0:02:00]} 15. Rc1 {[%clk 0:02:15]}  cxd4 {[%clk 0:01:24]} 16. Nxd4 {[%clk 0:02:14]}  Be6 {[%clk 0:01:24]} 17. Nxe6 {[%clk 0:02:09]}  fxe6 {[%clk 0:01:24]} 18. Qg4 {[%clk 0:02:00]}  e5 {[%clk 0:01:22]} 19. Nd5 {[%clk 0:01:58]}  Qa7 {[%clk 0:00:46]} 20. Rc7 {[%clk 0:01:50]}  Qxf2+ {[%clk 0:00:45]} 21. Kh1 {[%clk 0:01:41]}  Qxe1+ {[%clk 0:00:45]} 22. Bg1 {[%clk 0:01:41]}  Rf1 {[%clk 0:00:29]} 23. Qe6+ {[%clk 0:01:33]}  Kh8 {[%clk 0:00:29]} 24. Rc8+ {[%clk 0:01:31]}  Rxc8 {[%clk 0:00:27]} 25. Qxc8+ {[%clk 0:01:32]}  Bf8 {[%clk 0:00:25]} 26. Kh2 {[%clk 0:01:25]}  Qg3+ {[%clk 0:00:24]} 27. Kh1 {[%clk 0:01:24]}  Qf2 {[%clk 0:00:23]} 0-1


[Site "https://www.chess.com"]